[Event "Czech Extraliga 2023-24"]
[Site "Czech Republic"]
[Date "2024.02.10"]
[Round "7.5"]
[White "Ftacnik, Lubomir"]
[Black "Nemec, Jachym"]
[Result "1-0"]
[ECO "D38"]
[WhiteElo "2438"]
[BlackElo "2393"]
[Annotator "TA"]
[PlyCount "81"]
[EventDate "2023.10.14"]
[EventCountry "CZE"]
[SourceTitle "playchess.com"]
[Source "ChessBase"]
[SourceQuality "1"]
[TimeControl "40/5400+30:1800+30"]

{[%evp 26,81,29,0,0,-7,0,0,0,-21,78,84,79,80,88,88,83,72,72,66,83,73,75,81,80,67,77,68,63,77,89,65,80,72,72,61,86,54,58,49,131,111,135,122,114,119,93,99,340,225,335,212,820,1110,1123,1066,1024,1014]} 1. Nf3 {[%emt 0:00:06]} d5 {[%emt 0:00:13]} 2. d4 {[%emt 0:00:09]} Nf6 {[%emt 0:00:06]} 3. c4 {[%emt 0:00:08]} e6 {[%emt 0:00:08]} 4. Nc3 {[%emt 0:00:21]} Nbd7 {[%emt 0:00:55]} 5. Bg5 {[%emt 0:02:16]} Bb4 {[%emt 0:00:18]} 6. e3 {[%emt 0:01:43]} c5 {[%emt 0:00:07]} 7. cxd5 {[%emt 0:01:06]} exd5 {[%emt 0:00:12]} 8. Bd3 {[%emt 0:01:04]} Qa5 {[%emt 0:00:27]} 9. Qc2 {[%emt 0:00:54]} c4 {[%emt 0:00:13]} 10. Bf5 {[%emt 0:00:22]} O-O {[%emt 0:00:11]} 11. O-O {[%emt 0:01:35]} Re8 {[%emt 0:00:15]} 12. Nd2 {[%emt 0:04:40]} g6 {[%emt 0:00:45]} 13. Bxd7 {[%emt 0:14:49]} Nxd7 {[%emt 0:00:15]} 14. f3 {[%emt 0:00:44]} Nb6 {[%emt 0:11:46]} 15. h4 {[%emt 0:06:50]} Bf8 {[%emt 0:01:05]} 16. a3 {[%emt 0:06:37]} Bg7 {[%emt 0:11:47] The position is equal.} 17. b4 {[%emt 0:03:27]} cxb3 {[%emt 0:00:49]} (17... Qa6 $11 {remains equal.}) 18. Nxb3 $16 {[%emt 0:00:15][%cal Bd2b3,Bb3c5,Bc5d3][%mdl 32]} Qa6 {[%emt 0:00:05]} 19. Nc5 {[%emt 0:04:28]} Qc4 {[%emt 0:03:00] [#]} 20. Qd2 $1 {[%emt 0:00:57] Rab1 is the strong threat.} Nd7 {[%emt 0:13:31]} 21. Nd3 {[%emt 0:01:52] And now Rab1 would win.} Nb6 {[%emt 0:05:44]} 22. Rfc1 {[%emt 0:09:26]} Bf5 {[%emt 0:21:44]} 23. Nc5 {[%emt 0:01:51][%cal Og2g4] A dynamic duo of knights.} Rac8 {[%emt 0:03:19]} 24. g4 {[%emt 0:16:02]} Be6 {[%emt 0:00:42]} 25. Rab1 {[%emt 0:01:48]} (25. Nxb7 $6 Qc7 26. Nc5 Nc4 $11) 25... Rxc5 {[%emt 0:02:55]} 26. dxc5 {[%emt 0:03:13]} Qxc5 {[%emt 0:00:09][%cal Ob6c4] [#]} 27. Ne4 $1 $36 {[%emt 0:00:58][%mdl 2048] Keeping Black busy.} Qxa3 {[%emt 0:03:24]} 28. Nf6+ {[%emt 0:01:04]} Bxf6 {[%emt 0:00:08]} 29. Bxf6 {[%emt 0:00:04]} Nc4 {[%emt 0:00:53] [#] Prevents Bb2} 30. Qd4 {[%emt 0:01:37][%mdl 1024] White has strong compensation.} b6 {[%emt 0:03:22][%cal Oh7h5]} 31. Ra1 {[%emt 0:04:45]} Qd6 {[%emt 0:02:30]} 32. Kg2 {[%emt 0:04:09][%cal Oc1c4] Inhibits Qg3+.} (32. Rxa7 $2 Qg3+ 33. Kh1 Qxf3+ 34. Kh2 Nxe3 $19 (34... Qxe3 35. Qxe3 Nxe3 36. g5 $15)) 32... Qc7 {[%emt 0:03:18]} (32... Nxe3+ $1 $14 33. Qxe3 Bd7) 33. Bg5 {[%emt 0:01:14]} a5 {[%emt 0:02:17]} 34. Bh6 {[%emt 0:00:33]} f6 {[%emt 0:01:06]} 35. Qxf6 {[%emt 0:00:30]} Qf7 {[%emt 0:00:38]} 36. Qd4 {[%emt 0:02:05] Hoping for Rab1. Dancing on a razor blade. White is more active.} Ra8 $2 {[%emt 0:02:35] [#]} (36... Bd7 $16 37. Rh1 (37. e4 Bc6 $18) 37... Re6) 37. h5 $1 {[%emt 0:01:07][%mdl 512]} b5 {[%emt 0:03:00]} (37... Rc8 {keeps fighting.} 38. Rh1 g5) 38. Rh1 {[%emt 0:00:08] hxg6 would now be deadly.} b4 $2 {[%emt 0:01:43]} (38... g5 39. Rhc1 (39. Bxg5 Rf8 $18) 39... Rc8) 39. hxg6 $18 {[%emt 0:01:53] White is clearly winning.} Qxg6 {[%emt 0:00:11]} 40. Rh5 {[%emt 0:00:16]} Kf7 {[%emt 0:01:28]} 41. Rah1 {[%emt 0:12:32] White took control after the opening.   Weighted Error Value: White=0.23 (precise) /Black=0.33.  Loses game:     	---       	Black=1      Mistake:       	---       	Black=4      Inaccurate:     	White=3     	---        OK:         	White=11    	Black=12     Best:        	White=2     	Black=4      Strong:       	White=1     	---} 1-0

[Event "Czech Extraliga 2023-24"]
[Site "Czech Republic"]
[Date "2024.02.10"]
[Round "7.5"]
[White "Miesbauer, Jan"]
[Black "Rydl, Jiri"]
[Result "1-0"]
[ECO "C10"]
[WhiteElo "2392"]
[BlackElo "2397"]
[Annotator "TA"]
[PlyCount "55"]
[EventDate "2023.10.14"]
[EventCountry "CZE"]
[SourceTitle "playchess.com"]
[Source "ChessBase"]
[SourceQuality "1"]
[TimeControl "40/5400+30:1800+30"]

{[%evp 12,55,32,29,30,23,69,48,58,61,75,81,106,100,82,69,94,89,87,79,80,87,80,83,93,76,168,190,295,298,354,358,358,366,352,358,318,325,522,481,1952,1864,29980,29981,29990,2385]} 1. e4 {[%emt 0:00:08]} e6 {[%emt 0:00:38]} 2. d4 {[%emt 0:00:13]} d5 {[%emt 0:00:05]} 3. Nd2 {[%emt 0:00:52]} dxe4 {[%emt 0:00:29]} 4. Nxe4 {[%emt 0:00:06]} Nd7 {[%emt 0:00:13]} 5. Nf3 {[%emt 0:00:47]} Ngf6 {[%emt 0:00:06]} 6. Nxf6+ {[%emt 0:07:06]} Nxf6 {[%emt 0:00:52]} 7. Ne5 {[%emt 0:03:43]} Nd7 {[%emt 0:01:47]} 8. Bf4 {[%emt 0:17:34]} (8. Be2 {simplifies} Nxe5 9. dxe5 Qxd1+ 10. Bxd1 Bc5 11. c3) 8... Bd6 {[%emt 0:04:06]} (8... Nxe5 $11 9. Bxe5 Bd7) 9. Qh5 {[%emt 0:02:06][%csl Ge5][%cal Rh5f7] [#]} O-O {[%emt 0:10:43] White is slightly better.} 10. Bd3 {[%emt 0:02:08][%csl Gd3][%cal Rh5h7]} f5 {[%emt 0:02:28]} 11. O-O-O $40 {[%emt 0:02:25][%mdl 128] White is out for blood. White is much more active.} Bxe5 {[%emt 0:05:41]} 12. dxe5 {[%emt 0:01:03] g4 is the strong threat.} Qe7 {[%emt 0:04:18]} 13. h4 {[%emt 0:05:13]} Nb6 {[%emt 0:04:09]} 14. Bg5 {[%emt 0:05:04]} Qf7 {[%emt 0:05:40] Black is weak on the dark squares} 15. Qe2 {[%emt 0:00:09]} Bd7 {[%emt 0:01:22]} 16. h5 {[%emt 0:01:29]} h6 {[%emt 0:00:33]} 17. Bd2 {[%emt 0:00:09]} Bc6 {[%emt 0:05:48][%cal Of8d8]} 18. Rh3 {[%emt 0:06:45]} f4 {[%emt 0:16:11]} (18... Rad8 $16 {might work better.}) 19. Rg1 $18 {[%emt 0:04:45] aiming for g4.} Kh8 {[%emt 0:07:51]} (19... Qe7 $142 20. Qg4 Nd7) 20. g4 {[%emt 0:02:48] Hoping for g5.} Qe7 {[%emt 0:15:40] [#]} 21. g5 $1 {[%emt 0:02:27][%mdl 512]} hxg5 {[%emt 0:00:54]} 22. Bg6 {[%emt 0:02:11]} Be8 {[%emt 0:04:56]} 23. Qe4 {[%emt 0:01:32] Black must now prevent h6.} Rf5 {[%emt 0:00:58]} 24. Rh2 {[%emt 0:07:37]} (24. Bxf5 exf5 25. Qxb7 (25. Qxf5 Bd7 $18) 25... g4) 24... Bc6 $2 {[%emt 0:00:36]} (24... a5 25. Bxf5 Bc6) 25. Qe2 {[%emt 0:00:53][%cal Oh5h6] And now h6! would win.} Qf8 {[%emt 0:01:32]} (25... f3 $142 26. Qe1 Nc4) 26. h6 {[%emt 0:00:50] White wants to mate with hxg7+.} gxh6 {[%emt 0:02:41]} 27. Bxf5 {[%emt 0:00:19]} exf5 {[%emt 0:01:21]} 28. Rxg5 {[%emt 0:00:27] Weighted Error Value: White=0.06 (flawless) /Black=0.44.  Mistake:       	---       	Black=5      Inaccurate:     	---       	Black=1      OK:         	White=10    	Black=2      Best:        	White=1     	Black=3      Brilliant:      	White=1     	---} (28. Qh5 $142 Re8 29. Qxg5 (29. Qxh6+ Qxh6 30. Rxh6+ Kg7 $18) (29. Qg6 Qg7 $18) 29... Re6 30. Bb4 (30. Qxf4 Be8 $18) 30... Qf7 31. Rxh6+ (31. Qxf4 Kh7 $18) 31... Rxh6 32. Qxh6+ Qh7 33. Qf8+ Qg8 34. Qxg8#) 1-0

[Event "Czech Extraliga 2023-24"]
[Site "Czech Republic"]
[Date "2024.02.10"]
[Round "7.5"]
[White "Blahynka, Martin"]
[Black "Zwardon, Vojtech"]
[Result "1/2-1/2"]
[ECO "A45"]
[WhiteElo "2383"]
[BlackElo "2452"]
[Annotator "TA"]
[PlyCount "106"]
[EventDate "2023.10.14"]
[EventCountry "CZE"]
[SourceTitle "playchess.com"]
[Source "ChessBase"]
[SourceQuality "1"]
[TimeControl "40/5400+30:1800+30"]

{[%evp 29,106,0,0,0,22,15,39,39,46,27,37,39,81,81,89,85,118,100,118,91,82,92,92,18,32,30,29,10,9,4,8,8,13,-30,-10,0,0,0,37,13,12,7,122,111,138,133,125,137,116,0,0,0,0,0,0,0,0,0,0,0,0,0,0,0,0,0,0,0,6,6,8,0,0,0,0,0,0,0,0]} 1. d4 {[%emt 0:00:04]} Nf6 {[%emt 0:00:01]} 2. Bf4 {[%emt 0:00:06]} d6 {[%emt 0:01:17]} 3. Nc3 {[%emt 0:06:10]} Nbd7 {[%emt 0:01:16]} 4. Nf3 {[%emt 0:00:11]} c6 {[%emt 0:00:43]} 5. e4 {[%emt 0:01:21]} Qa5 {[%emt 0:00:14]} 6. Bd2 {[%emt 0:14:04] A45: Trompowsky Attack.} Qc7 {[%emt 0:00:41]} 7. Bd3 {[%emt 0:07:54]} e5 {[%emt 0:00:30]} 8. O-O {[%emt 0:01:09]} h6 {[%emt 0:00:11]} 9. a4 {[%emt 0:03:15]} a5 $146 {[%emt 0:00:41]} ({Predecessor:} 9... a6 10. a5 Be7 11. Be3 Rg8 12. Qe2 {1-0 Trevis,R (1340)-Wells,K (1200) IECG QE.2002.0.00022}) 10. Qe2 {[%emt 0:07:24]} Be7 {[%emt 0:00:38]} 11. Nd1 {[%emt 0:12:08]} O-O {[%emt 0:02:49]} 12. Ne3 {[%emt 0:08:01]} Re8 {[%emt 0:00:49]} 13. dxe5 {[%emt 0:03:58]} Nxe5 {[%emt 0:07:01]} 14. Nxe5 {[%emt 0:00:53]} dxe5 {[%emt 0:00:03]} 15. Bc4 {[%emt 0:02:51]} Bc5 {[%emt 0:02:37]} 16. Qf3 {[%emt 0:01:24]} Bxe3 {[%emt 0:04:36]} 17. Bxe3 {[%emt 0:00:44]} Be6 {[%emt 0:00:10]} 18. Bd3 {[%emt 0:03:03]} Nd7 {[%emt 0:04:06]} 19. Qg3 {[%emt 0:06:12]} Kh7 {[%emt 0:03:33]} 20. f4 {[%emt 0:05:40]} f6 {[%emt 0:00:05]} 21. f5 {[%emt 0:00:45]} Bf7 {[%emt 0:00:06]} 22. Qf2 {[%emt 0:01:32]} Reb8 {[%emt 0:04:11]} 23. g4 {[%emt 0:05:32]} b5 {[%emt 0:00:11]} 24. b3 {[%emt 0:00:23]} bxa4 {[%emt 0:00:40]} 25. Rxa4 {[%emt 0:00:09]} Nb6 {[%emt 0:11:34]} 26. Bxb6 {[%emt 0:00:02]} (26. Ra3 $16) 26... Rxb6 $11 {[%emt 0:02:39]} 27. Qc5 {[%emt 0:02:23]} Rb4 {[%emt 0:03:33]} 28. Rfa1 {[%emt 0:00:49]} Rxa4 {[%emt 0:00:07]} 29. Rxa4 {[%emt 0:00:04]} Qd8 $1 {[%emt 0:02:00]} 30. Ra3 {[%emt 0:03:11]} (30. Qxc6 $2 Be8 31. Qd5 Bxa4 32. bxa4 Qb6+ 33. Kg2 Rd8 $19) 30... Rb8 $1 {[%emt 0:04:45]} 31. Qc3 {[%emt 0:03:38]} Qb6+ {[%emt 0:00:06]} 32. Kg2 {[%emt 0:00:06]} Ra8 {[%emt 0:01:49]} 33. Be2 {[%emt 0:01:07]} Ra7 {[%emt 0:01:18]} 34. Ra1 {[%emt 0:00:03]} c5 {[%emt 0:02:32]} 35. h4 {[%emt 0:00:09]} c4 {[%emt 0:11:15] [#]} (35... Qb4 $11 36. Qxb4 cxb4) 36. g5 $1 $16 {[%emt 0:00:26]} (36. Bxc4 $6 Bxc4 37. bxc4 (37. Qxc4 Qd8 $11) 37... g6 $11) 36... fxg5 {[%emt 0:00:37]} (36... cxb3 $2 37. g6+ Bxg6 38. fxg6+ Kxg6 39. h5+ (39. cxb3 Kh7 $18) (39. Qxb3 Qc6 $18) 39... Kh7 40. cxb3 $18) 37. hxg5 {[%emt 0:00:03]} cxb3 {[%emt 0:00:13]} 38. g6+ {[%emt 0:00:59]} (38. cxb3 Rc7 39. Qxa5 (39. Qxe5 Rc6 $11) 39... Qc6 $18) 38... Bxg6 {[%emt 0:00:03]} 39. fxg6+ {[%emt 0:00:04]} (39. Qxb3 $1 $16 Qc6 40. fxg6+ Qxg6+ 41. Kh3) 39... Qxg6+ $11 {[%emt 0:00:04]} 40. Kh3 $1 {[%emt 0:01:52]} bxc2 {[%emt 0:03:08]} (40... Qxe4 $2 {is the wrong capture.} 41. Bd3 $18 (41. Rxa5 $2 {loses.} Qh1+ 42. Kg3 Rxa5 $19) (41. Rxa5 $2 {too greedy.} Qh1+ 42. Kg3 Rxa5 $19)) 41. Qxc2 {[%emt 0:05:59]} Qb6 {[%emt 0:11:04]} 42. Ra3 {[%emt 0:11:20]} a4 {[%emt 0:01:28]} 43. Bg4 {[%emt 0:01:52]} g6 {[%emt 0:07:30]} 44. Rxa4 {[%emt 0:07:36]} Qe3+ {[%emt 0:05:07]} 45. Kg2 {[%emt 0:01:07]} Rf7 {[%emt 0:00:05]} 46. Qe2 {[%emt 0:04:00]} Qg5 {[%emt 0:00:07]} 47. Kh3 {[%emt 0:01:22]} h5 {[%emt 0:00:26]} (47... Rf4 $5 48. Ra7+ $8 Kh8 49. Ra8+ Kg7 50. Ra7+ Kh8 51. Ra8+ Kg7 52. Ra7+ Kh8 $11) 48. Bf3 {[%emt 0:00:37]} Qf4 {[%emt 0:09:51]} 49. Ra3 {[%emt 0:00:06]} Kh6 {[%emt 0:04:13]} 50. Kg2 {[%emt 0:00:04]} Qg5+ {[%emt 0:00:11]} 51. Kf2 {[%emt 0:01:08]} Qh4+ {[%emt 0:01:35]} 52. Kg2 {[%emt 0:00:04]} Qg5+ {[%emt 0:00:57]} 53. Kf2 {[%emt 0:00:10]} Qh4+ {[%emt 0:01:18]} 1/2-1/2

[Event "Czech Extraliga 2023-24"]
[Site "Czech Republic"]
[Date "2024.02.10"]
[Round "7.6"]
[White "LIN9 Kaczur Florian IM"]
[Black "NOV10 Zilka Stepan GM"]
[Result "1/2-1/2"]
[ECO "E16"]
[WhiteElo "2504"]
[BlackElo "2599"]
[Annotator "NA"]
[PlyCount "35"]
[EventDate "2023.10.14"]
[EventCountry "CZE"]
[SourceTitle "playchess.com"]
[Source "ChessBase"]
[SourceQuality "1"]
[TimeControl "40/5400+30:1800+30"]

1. d4 {[%emt 0:00:04]} Nf6 {[%emt 0:00:11]} 2. c4 {[%emt 0:00:21]} e6 {[%emt 0:00:08]} 3. Nf3 {[%emt 0:00:44]} b6 {[%emt 0:01:03]} 4. g3 {[%emt 0:01:07]} Bb7 {[%emt 0:00:23]} 5. Bg2 {[%emt 0:00:14]} Bb4+ {[%emt 0:02:02]} 6. Bd2 {[%emt 0:01:36]} Bxd2+ {[%emt 0:00:27]} 7. Qxd2 {[%emt 0:07:00]} O-O {[%emt 0:00:10]} 8. Nc3 {[%emt 0:00:42]} Ne4 {[%emt 0:00:18]} 9. Qc2 {[%emt 0:01:13]} Nxc3 {[%emt 0:00:23]} 10. Qxc3 {[%emt 0:00:25]} d6 {[%emt 0:09:06]} 11. O-O {[%emt 0:02:16]} Nd7 {[%emt 0:00:24]} 12. Ne1 {[%emt 0:10:37]} Bxg2 {[%emt 0:02:13]} 13. Nxg2 {[%emt 0:00:06]} c5 {[%emt 0:03:56]} 14. Rfd1 {[%emt 0:02:59]} Qc7 {[%emt 0:00:37]} 15. Rac1 {[%emt 0:01:55]} Nf6 {[%emt 0:01:14]} 16. Ne3 {[%emt 0:03:41]} Rfe8 {[%emt 0:02:26]} 17. h3 {[%emt 0:01:50]} h6 {[%emt 0:00:40]} 18. Qd3 {[%emt 0:07:53]} 1/2-1/2

[Event "Czech Extraliga 2023-24"]
[Site "Czech Republic"]
[Date "2024.02.10"]
[Round "7.6"]
[White "Jirovsky, Milos"]
[Black "Cech, Pavel"]
[Result "1/2-1/2"]
[ECO "E07"]
[WhiteElo "2458"]
[BlackElo "2346"]
[Annotator "TA"]
[PlyCount "68"]
[EventDate "2023.10.14"]
[EventCountry "CZE"]
[SourceTitle "playchess.com"]
[Source "ChessBase"]
[SourceQuality "1"]
[TimeControl "40/5400+30:1800+30"]

{[%evp 17,68,11,13,13,22,15,18,15,30,0,0,0,0,0,5,0,7,-4,33,24,33,29,22,0,0,0,0,0,0,0,0,0,0,0,0,0,0,0,0,0,0,-12,-12,-12,-12,-12,-12,-8,0,0,0,-14,0]} 1. c4 {[%emt 0:00:03]} c6 {[%emt 0:02:20]} 2. Nf3 {[%emt 0:00:30]} d5 {[%emt 0:00:15]} 3. Qb3 {[%emt 0:00:19]} Nf6 {[%emt 0:01:15]} 4. d4 {[%emt 0:00:26]} e6 {[%emt 0:00:18]} 5. g3 {[%emt 0:00:33]} Nbd7 {[%emt 0:00:09]} 6. Bg2 {[%emt 0:00:11]} Be7 {[%emt 0:00:06]} 7. O-O {[%emt 0:01:03]} O-O {[%emt 0:00:10]} 8. Bf4 {[%emt 0:02:45]} b6 {[%emt 0:01:34]} 9. Nc3 {[%emt 0:04:21]} Bb7 {[%emt 0:00:15]} 10. Rac1 {[%emt 0:06:26]} Nh5 {[%emt 0:15:07]} 11. Bd2 {[%emt 0:01:20]} Nhf6 {[%emt 0:00:23]} 12. Rfd1 {[%emt 0:01:57]} Rc8 {[%emt 0:10:17]} 13. Bg5 {[%emt 0:14:50]} h6 {[%emt 0:17:01]} 14. Bxf6 {[%emt 0:00:46]} Nxf6 {[%emt 0:00:06]} 15. Ne5 {[%emt 0:00:54]} Nd7 {[%emt 0:05:50]} 16. Nxd7 {[%emt 0:05:10]} Qxd7 {[%emt 0:00:19]} 17. Qa4 {[%emt 0:00:05] Dodges Ba6} dxc4 {[%emt 0:09:43]} 18. Qxc4 {[%emt 0:00:20]} Rfd8 {[%emt 0:04:17]} 19. e3 {[%emt 0:04:49]} Qd6 {[%emt 0:06:07]} 20. f4 {[%emt 0:07:43] The position is equal.} Qb8 {[%emt 0:03:47]} 21. b4 {[%emt 0:02:08]} c5 {[%emt 0:05:24]} 22. dxc5 {[%emt 0:02:01]} Rxd1+ {[%emt 0:05:06]} 23. Rxd1 {[%emt 0:00:26] [#] Strongly threatening c6.} Bxg2 {[%emt 0:00:16]} 24. Kxg2 {[%emt 0:00:08]} bxc5 {[%emt 0:00:46]} 25. b5 {[%emt 0:00:09]} Rd8 {[%emt 0:00:46]} 26. Kf2 {[%emt 0:06:13]} Rxd1 {[%emt 0:00:45]} 27. Nxd1 $11 {[%emt 0:00:05][%mdl 4096] Endgame. KQB-KQN} Qb7 {[%emt 0:03:04]} 28. e4 {[%emt 0:01:35][%cal Be3e4,Be4e5][%mdl 32]} Bf6 {[%emt 0:00:13]} 29. e5 {[%emt 0:02:12]} Bd8 {[%emt 0:01:01]} 30. Ne3 {[%emt 0:01:05]} (30. Qxc5 $2 {too greedy.} Bb6 $19) 30... Qh1 {[%emt 0:00:45]} 31. h4 {[%emt 0:01:29]} Qh2+ {[%emt 0:00:45]} 32. Kf3 {[%emt 0:02:05]} Qh1+ {[%emt 0:00:07]} 33. Kf2 {[%emt 0:00:30]} Qh2+ {[%emt 0:00:05]} 34. Kf3 {[%emt 0:00:21]} Qh1+ {[%emt 0:09:08] An interesting draw.   Weighted Error Value: White=0.04 (flawless) /Black=0.03 (flawless) .  Inaccurate:     	White=1     	Black=1      OK:         	White=6     	Black=13     Best:        	White=3     	---} 1/2-1/2

[Event "Czech Extraliga 2023-24"]
[Site "Czech Republic"]
[Date "2024.02.10"]
[Round "7.6"]
[White "Straka, Vojtech"]
[Black "Kraus, Tomas"]
[Result "0-1"]
[ECO "D31"]
[WhiteElo "2439"]
[BlackElo "2484"]
[Annotator "TA"]
[PlyCount "68"]
[EventDate "2023.10.14"]
[EventCountry "CZE"]
[SourceTitle "playchess.com"]
[Source "ChessBase"]
[SourceQuality "1"]
[TimeControl "40/5400+30:1800+30"]

{[%evp 10,68,0,0,29,41,42,12,12,26,16,14,56,-12,-10,-17,0,0,0,0,-7,-7,-6,-8,-8,-20,-27,-18,-17,-39,-23,-37,-29,-119,-131,-126,-129,-144,-108,-114,-128,-141,-89,-114,-106,-142,-68,-214,-214,-243,-242,-346,-347,-365,-312,-519,-508,-941,-908,-822,-813]} 1. c4 {[%emt 0:00:04]} e6 {[%emt 0:00:26]} 2. Nc3 {[%emt 0:00:27]} d5 {[%emt 0:00:17]} 3. d4 {[%emt 0:00:10]} Bb4 {[%emt 0:00:42]} 4. a3 {[%emt 0:03:16]} Bxc3+ {[%emt 0:00:10]} 5. bxc3 {[%emt 0:00:09]} c5 {[%emt 0:00:41]} 6. e3 {[%emt 0:01:07]} Ne7 {[%emt 0:00:28]} 7. Nf3 {[%emt 0:18:10]} O-O {[%emt 0:01:50]} 8. Be2 {[%emt 0:03:18]} ({But not} 8. dxc5 Nd7 $11) 8... Qc7 {[%emt 0:10:25] The position is equal.} 9. cxd5 {[%emt 0:02:09]} exd5 {[%emt 0:02:15]} 10. O-O {[%emt 0:00:55]} Nd7 {[%emt 0:13:04]} 11. a4 {[%emt 0:08:21]} (11. c4 $14) 11... c4 $1 $11 {[%emt 0:03:37]} 12. Ba3 {[%emt 0:04:51]} Re8 {[%emt 0:03:57]} 13. Nd2 {[%emt 0:04:01]} Nf6 {[%emt 0:02:25]} 14. Bxe7 {[%emt 0:15:54]} Rxe7 {[%emt 0:02:06]} 15. Qb1 {[%emt 0:02:50]} g6 {[%emt 0:09:51]} 16. a5 {[%emt 0:04:09]} Bf5 {[%emt 0:02:38]} 17. Qb4 {[%emt 0:00:50]} h5 {[%emt 0:02:03]} 18. Rfe1 {[%emt 0:02:19]} Kg7 {[%emt 0:02:41]} 19. Bf3 {[%emt 0:06:03]} Rd8 {[%emt 0:06:21]} 20. h4 {[%emt 0:02:28]} Ng4 {[%emt 0:11:01]} 21. g3 {[%emt 0:05:52] [#]} (21. Nf1 $1 $11) 21... Rxe3 $3 $17 {[%emt 0:03:33][%mdl 512]} 22. Rxe3 {[%emt 0:06:55]} (22. Kg2 Rd3) 22... Nxe3 {[%emt 0:00:08]} 23. Qb5 {[%emt 0:02:22] White is weak on the light squares} a6 $36 {[%emt 0:04:11][%mdl 2048] White is under strong pressure.} 24. Qb2 {[%emt 0:00:02]} Ng4 {[%emt 0:01:47]} 25. Bxg4 {[%emt 0:02:12]} hxg4 {[%emt 0:02:04]} (25... Bxg4 $142 26. Nf1 Re8) 26. Nf1 {[%emt 0:00:08]} Re8 $1 {[%emt 0:02:31][%cal Bd8e8,Be8e6,Be6b6,Bb6b2,Bb2e2][%mdl 32]} 27. Qd2 {[%emt 0:00:18] [#]} Be4 {[%emt 0:01:49] Black has more active pieces.} (27... b5 $1 $17 {White must now prevent ...Be4.} 28. axb6 Qxb6) 28. Ne3 {[%emt 0:00:39] [#] White does not recover from this.} (28. Nh2 $1 $15) 28... Bf3 $1 $19 {[%emt 0:01:32]} 29. Kh2 {[%emt 0:01:49]} Re6 {[%emt 0:02:27]} 30. Qb2 {[%emt 0:00:42]} (30. Kg1 $142) 30... b5 {[%emt 0:04:00]} 31. axb6 {[%emt 0:01:14]} Rxb6 {[%emt 0:00:10]} ({Not} 31... Qxb6 32. Qc1 $19) 32. Qd2 {[%emt 0:00:20]} (32. Qc1) 32... Qb8 {[%emt 0:01:07] Black is clearly winning.} 33. Ng2 {[%emt 0:01:04]} (33. Qc1 $142 Qe8 34. Kg1) 33... Rb2 {[%emt 0:00:43]} 34. Qe1 {[%emt 0:00:35]} Re2 {[%emt 0:00:28] Weighted Error Value: White=0.52/Black=0.09 (flawless) .  Mistake:       	White=6     	Black=2      Inaccurate:     	White=2     	Black=1      OK:         	White=5     	Black=10     Strong:       	---       	Black=3      Brilliant:      	---       	Black=1} 0-1